fUSD/lending_fUSD_20240727
["ID","MTS","AMOUNT","RATE_DAILY","PERIOD"]
[333296095,1722038467263,961.30384944,6.3e-05,2]
[333296096,1722038474041,1222.30541732,6.3e-05,2]
[333296097,1722038571009,1222.30541732,6.3e-05,2]
[333296098,1722038575272,961.30384944,6.3e-05,2]
[333296099,1722038610777,150.0,0.00017816,120]
[333296104,1722038815758,152.0,0.0001278,34]
[333296105,1722038816051,152.0,0.00012734,33]
[333296106,1722038816373,152.0,0.00012688,32]
[333296107,1722038816695,152.0,0.00012642,31]
[333296108,1722038817019,152.0,0.00012596,30]
[333296219,1722039031666,-1050.16085359,7.636e-05,2]
[333296220,1722039031675,-296.31,8.219e-05,2]
[333296221,1722039031685,-922.67,9.762e-05,2]
[333296222,1722039031694,-4434.85914641,9.767e-05,2]
[333296223,1722039031706,-875.15807274,9.767e-05,2]
[333296224,1722039031718,-3909.26609286,9.767e-05,2]
[333296225,1722039031729,-268.07010932,9.767e-05,2]
[333296226,1722039031775,-312.65797867,9.767e-05,2]
[333296227,1722039031785,-229.85,9.836e-05,2]
[333296228,1722039031795,-250.0,9.846e-05,2]
[333296229,1722039031804,-239.12136282,9.882e-05,2]
[333296230,1722039031815,-5684.59124498,9.882e-05,2]
[333296231,1722039031826,-556.26670477,9.882e-05,2]
[333296239,1722039037798,-802.37337784,9.882e-05,2]
[333296240,1722039037856,-12081.54163747,9.882e-05,2]
[333296241,1722039037867,-4536.10567212,9.882e-05,2]
[333296242,1722039037877,-150.0,9.888e-05,2]
[333296243,1722039037886,-1000.0,9.927e-05,2]
[333296244,1722039037896,-173.97,9.939e-05,2]
[333296245,1722039037905,-499.99,9.939e-05,2]
[333296246,1722039037915,-388.472,0.0001044,2]
[333296247,1722039037924,-296.31,0.00010467,2]
[333296248,1722039037934,-150.99,0.00010477,2]
[333296249,1722039037944,-207.8,0.00010477,2]
[333296250,1722039037953,-150.0,0.00010672,2]
[333296251,1722039037962,-10202.97556952,0.00010673,2]
[333296252,1722039037973,-2571.81628,0.00010673,2]
[333296253,1722039037984,-1242.6789177,0.00010673,2]
[333296254,1722039037995,-673.38953007,0.00010673,2]
[333296255,1722039038007,-383.65,0.00010673,2]
[333296256,1722039038018,-1001.27625,0.00010673,2]
[333296257,1722039038029,-674.10473515,0.00010673,2]
[333296258,1722039038065,-2961.27754369,0.00010673,2]
[333296260,1722039038100,-1785.88344508,0.00010673,2]
[333296261,1722039038135,-4704.84411993,0.00010673,2]
[333296262,1722039038243,-244245.10360886,0.00010673,2]
[333296263,1722039038252,-3064.7533,0.00010681,2]
[333296264,1722039038263,-212.933,0.00010681,2]
[333296265,1722039038273,-3761.0858,0.00010681,2]
[333296266,1722039038283,-1201.76,0.00010742,2]
[333296267,1722039038292,-150.0,0.00010742,2]
[333296268,1722039038302,-165.54266148,0.0001079,2]
[333296269,1722039038311,-4054.072,0.0001079,2]
[333296270,1722039038320,-150.0,0.00010797,2]
[333296271,1722039038330,-150.0,0.00010809,2]
[333296272,1722039038340,-599.07,0.00010889,2]
[333296273,1722039038349,-150.0,0.00010889,2]
[333296274,1722039038359,-4894.1722,0.00010899,2]
[333296275,1722039038368,-21022.1544,0.00010899,2]
[333296276,1722039038378,-20475.963,0.00010899,2]
[333296277,1722039038387,-346.4959,0.00010899,2]
[333296278,1722039038396,-389.05856368,0.00010899,2]
[333296279,1722039038406,-389.05856361,0.00010899,2]
[333296280,1722039038416,-389.05856361,0.00010899,2]
[333296281,1722039038426,-389.05856361,0.00010899,2]
[333296282,1722039038436,-389.05856361,0.00010899,2]
[333296283,1722039038446,-389.05856361,0.00010899,2]
[333296284,1722039038456,-389.05856361,0.00010899,2]
[333296285,1722039038465,-389.05856361,0.00010899,2]
[333296286,1722039038475,-1000.0,0.000109,2]
[333296287,1722039038485,-353.45843447,0.000109,2]
[333296288,1722039038495,-165.54266148,0.000109,2]
[333296289,1722039038504,-324.61783536,0.000109,2]
[333296290,1722039038515,-446.60266317,0.000109,2]
[333296291,1722039038531,-229.21,0.00010904,3]
[333296292,1722039038541,-150.0,0.00010909,2]
[333296293,1722039038550,-150.0,0.0001091,2]
[333296294,1722039038560,-1581.0,0.0001091,2]
[333296295,1722039038571,-1728.6,0.0001091,2]
[333296296,1722039038581,-176.338,0.0001091,2]
[333296297,1722039038591,-500.0,0.00010958,2]
[333296298,1722039038601,-368.57610165,0.00010958,2]
[333296299,1722039038611,-500.0,0.00010958,2]
[333296300,1722039038620,-500.0,0.00010958,2]
[333296301,1722039038629,-500.0,0.00010958,2]
[333296302,1722039038639,-237.09183822,0.00010958,2]
[333296303,1722039038648,-500.0,0.00010958,2]
[333296304,1722039038658,-505.61254132,0.00010958,2]
[333296305,1722039038667,-502.96866718,0.00010958,2]
[333296306,1722039038677,-500.0,0.00010958,2]
[333296307,1722039038686,-512.5871226,0.00010958,2]
[333296308,1722039038696,-503.53945933,0.00010958,2]
[333296309,1722039038706,-510.23469267,0.00010958,2]
[333296310,1722039038716,-500.0,0.00010958,2]
[333296311,1722039038725,-500.0,0.00010958,2]
[333296312,1722039038735,-500.0,0.00010958,2]
[333296313,1722039038744,-493.16637355,0.00010958,2]
[333296314,1722039038754,-502.91537403,0.00010958,2]
[333296315,1722039038765,-500.0,0.00010958,2]
[333296316,1722039038775,-500.0,0.00010958,2]
[333296317,1722039038785,-500.0,0.00010958,2]
[333296318,1722039038795,-500.0,0.00010958,2]
[333296319,1722039038804,-500.0,0.00010958,2]
[333296320,1722039038814,-504.81,0.00010958,2]
[333296321,1722039038824,-506.63870942,0.00010958,2]
[333296322,1722039038834,-500.0,0.00010958,2]
[333296323,1722039038843,-549.61,0.00010958,2]
[333296324,1722039038853,-616.51466635,0.00010958,2]
[333296325,1722039038862,-151.045528,0.00010958,2]
[333296326,1722039038871,-500.0,0.00010958,2]
[333296327,1722039038881,-500.0,0.00010958,2]
[333296328,1722039038891,-500.0,0.00010958,2]
[333296329,1722039038900,-500.0,0.00010958,2]
[333296330,1722039038910,-512.6306718,0.00010958,2]
[333296331,1722039038919,-193.96628398,0.00010958,2]
[333296332,1722039038928,-500.0,0.00010958,2]
[333296333,1722039038938,-500.0,0.00010958,2]
[333296334,1722039038948,-500.0,0.00010958,2]
[333296335,1722039038957,-500.0,0.00010958,2]
[333296336,1722039038966,-500.0,0.00010958,2]
[333296337,1722039038976,-500.0,0.00010958,2]
[333296338,1722039038986,-500.0,0.00010958,2]
[333296339,1722039038995,-500.0,0.00010958,2]
[333296340,1722039039005,-500.0,0.00010958,2]
[333296341,1722039039015,-500.0,0.00010958,2]
[333296342,1722039039025,-500.0,0.00010958,2]
[333296343,1722039039034,-500.0,0.00010958,2]
[333296344,1722039039044,-500.0,0.00010958,2]
[333296345,1722039039053,-500.0,0.00010958,2]
[333296346,1722039039063,-500.0,0.00010958,2]
[333296347,1722039039073,-500.0,0.00010958,2]
[333296348,1722039039083,-504.06188402,0.00010958,2]
[333296349,1722039039093,-508.20161419,0.00010958,2]
[333296350,1722039039102,-500.0,0.00010958,2]
[333296351,1722039039112,-500.0,0.00010958,2]
[333296352,1722039039121,-500.0,0.00010958,2]
[333296353,1722039039131,-500.0,0.00010958,2]
[333296354,1722039039140,-500.0,0.00010958,2]
[333296355,1722039039149,-500.0,0.00010958,2]
[333296356,1722039039159,-500.0,0.00010958,2]
[333296357,1722039039168,-500.0,0.00010958,2]
[333296358,1722039039178,-500.0,0.00010958,2]
[333296359,1722039039188,-510.43092571,0.00010958,2]
[333296360,1722039039198,-503.80657854,0.00010958,2]
[333296361,1722039039207,-500.0,0.00010958,2]
[333296362,1722039039217,-619.31752288,0.00010958,2]
[333296363,1722039039227,-510.48893017,0.00010958,2]
[333296364,1722039039236,-500.0,0.00010958,2]
[333296365,1722039039246,-500.0,0.00010958,2]
[333296366,1722039039256,-500.0,0.00010958,2]
[333296367,1722039039266,-500.0,0.00010958,2]
[333296368,1722039039276,-500.0,0.00010958,2]
[333296369,1722039039286,-504.05856904,0.00010958,2]
[333296370,1722039039295,-500.0,0.00010958,2]
[333296371,1722039039305,-618.19,0.00010958,2]
[333296372,1722039039314,-500.0,0.00010958,2]
[333296373,1722039039324,-500.0,0.00010958,2]
[333296374,1722039039333,-529.88,0.00010958,2]
[333296375,1722039039343,-500.0,0.00010958,2]
[333296376,1722039039352,-500.0,0.00010958,2]
[333296377,1722039039362,-500.0,0.00010958,2]
[333296378,1722039039371,-500.0,0.00010958,2]
[333296379,1722039039407,-500.0,0.00010958,2]
[333296380,1722039039430,-500.0,0.00010958,2]
[333296381,1722039039440,-544.14,0.00010958,2]
[333296382,1722039039449,-500.0,0.00010958,2]
[333296383,1722039039459,-500.0,0.00010958,2]
[333296384,1722039039468,-500.0,0.00010958,2]
[333296385,1722039039478,-500.0,0.00010958,2]
[333296386,1722039039487,-500.0,0.00010958,2]
[333296387,1722039039497,-500.0,0.00010958,2]
[333296388,1722039039506,-500.0,0.00010958,2]
[333296389,1722039039519,-540.23309382,0.00010958,2]
[333296390,1722039039532,-500.0,0.00010958,2]
[333296391,1722039039541,-503.01537675,0.00010958,2]
[333296392,1722039039554,-500.0,0.00010958,2]
[333296393,1722039039564,-500.0,0.00010958,2]
[333296394,1722039039573,-500.0,0.00010958,2]
[333296395,1722039039583,-500.0,0.00010958,2]
[333296396,1722039039592,-568.76,0.00010958,2]
[333296397,1722039039602,-500.0,0.00010958,2]
[333296398,1722039039611,-500.0,0.00010958,2]
[333296399,1722039039620,-500.0,0.00010958,2]
[333296400,1722039039630,-500.0,0.00010958,2]
[333296401,1722039039639,-500.0,0.00010958,2]
[333296402,1722039039649,-500.0,0.00010958,2]
[333296403,1722039039658,-493.32,0.00010958,2]
[333296404,1722039039668,-500.0,0.00010958,2]
[333296405,1722039039678,-587.85814949,0.00010958,2]
[333296406,1722039039688,-500.0,0.00010958,2]
[333296407,1722039039698,-500.0,0.00010958,2]
[333296408,1722039039707,-500.0,0.00010958,2]
[333296409,1722039039716,-500.0,0.00010958,2]
[333296410,1722039039726,-500.0,0.00010958,2]
[333296411,1722039039737,-500.0,0.00010958,2]
[333296412,1722039039747,-601.68,0.00010958,2]
[333296413,1722039039757,-500.0,0.00010958,2]
[333296414,1722039039767,-370.62094266,0.00010958,2]
[333296415,1722039039776,-500.0,0.00010958,2]
[333296416,1722039039786,-500.0,0.00010958,2]
[333296417,1722039039795,-500.0,0.00010958,2]
[333296418,1722039039804,-500.0,0.00010958,2]
[333296419,1722039039814,-293.19,0.00010958,2]
[333296420,1722039039823,-500.0,0.00010958,2]
[333296421,1722039039832,-500.0,0.00010958,2]
[333296422,1722039039841,-195.89893815,0.00010958,2]
[333296423,1722039039850,-501.42163755,0.00010958,2]
[333296424,1722039039859,-499.00194371,0.00010958,2]
[333296425,1722039039868,-500.0,0.00010958,2]
[333296426,1722039039877,-496.97951191,0.00010958,2]
[333296427,1722039039887,-500.0,0.00010958,2]
[333296428,1722039039898,-498.87363044,0.00010958,2]
[333296429,1722039039909,-409.60686496,0.00010958,2]
[333296430,1722039039919,-500.0,0.00010958,2]
[333296431,1722039039930,-501.03146076,0.00010958,2]
[333296432,1722039039941,-525.19323516,0.00010958,2]
[333296433,1722039039950,-500.0,0.00010958,2]
[333296434,1722039039959,-500.0,0.00010958,2]
[333296435,1722039039970,-500.0,0.00010958,2]
[333296436,1722039039979,-500.0,0.00010958,2]
[333296437,1722039039989,-500.0,0.00010958,2]
[333296438,1722039040000,-443.18772473,0.00010958,2]
[333296439,1722039040009,-500.0,0.00010958,2]
[333296440,1722039040018,-504.40786557,0.00010958,2]
[333296441,1722039040028,-542.81523837,0.00010958,2]
[333296442,1722039040037,-500.0,0.00010958,2]
[333296443,1722039040046,-502.18079633,0.00010958,2]
[333296444,1722039040056,-186.22464338,0.00010958,2]
[333296445,1722039040065,-510.989732,0.00010958,2]
[333296446,1722039040074,-502.18482567,0.00010958,2]
[333296447,1722039040083,-508.57833963,0.00010958,2]
[333296448,1722039040092,-502.39606209,0.00010958,2]
[333296449,1722039040101,-500.0,0.00010958,2]
[333296450,1722039040110,-502.16589687,0.00010958,2]
[333296451,1722039040119,-500.0,0.00010958,2]
[333296452,1722039040128,-500.0,0.00010958,2]
[333296453,1722039040137,-500.0,0.00010958,2]
[333296454,1722039040146,-500.0,0.00010958,2]
[333296455,1722039040156,-579.74249721,0.00010958,2]
[333296456,1722039040165,-500.0,0.00010958,2]
[333296457,1722039040174,-500.0,0.00010958,2]
[333296458,1722039040183,-500.0,0.00010958,2]
[333296459,1722039040192,-511.04237853,0.00010958,2]
[333296460,1722039040201,-250.0,0.00010959,2]
[333296461,1722039040210,-150.0,0.00010959,2]
[333296462,1722039040219,-783.76,0.00010959,2]
[333296463,1722039040228,-150.0,0.00010978,2]
[333296464,1722039040238,-500.0,0.00010997,2]
[333296465,1722039040247,-500.0,0.00010998,2]
[333296466,1722039040256,-500.0,0.00010998,2]
[333296467,1722039040266,-1565.7539426,0.00010998,2]
[333296468,1722039040276,-84543.0053664,0.00010998,2]
[333296469,1722039040285,-1355.4393478,0.00010998,2]
[333296470,1722039040294,-12826.7777777,0.00010998,2]
[333296471,1722039040303,-2882.2865445,0.00010998,2]
[333296472,1722039040312,-643.37,0.00010998,2]
[333296473,1722039040321,-224.13827199,0.00010999,2]
[333296474,1722039040330,-500.0,0.00010999,2]
[333296475,1722039040339,-500.0,0.00010999,2]
[333296476,1722039040348,-500.0,0.00010999,2]
[333296477,1722039040357,-500.0,0.00010999,2]
[333296478,1722039040366,-500.0,0.00010999,2]
[333296479,1722039040375,-500.0,0.00010999,2]
[333296480,1722039040384,-500.0,0.00010999,2]
[333296481,1722039040394,-500.0,0.00010999,2]
[333296482,1722039040403,-500.0,0.00010999,2]
[333296483,1722039040413,-500.0,0.00010999,2]
[333296484,1722039040422,-500.0,0.00010999,2]
[333296485,1722039040432,-500.0,0.00010999,2]
[333296486,1722039040441,-500.0,0.00010999,2]
[333296487,1722039040450,-464.0,0.00010999,2]
[333296488,1722039040459,-868.73,0.00010999,2]
[333296489,1722039040468,-868.73,0.00010999,2]
[333296490,1722039040477,-868.73,0.00010999,2]
[333296491,1722039040487,-868.73,0.00010999,2]
[333296492,1722039040497,-868.73,0.00010999,2]
[333296493,1722039040506,-868.73,0.00010999,2]
[333296494,1722039040516,-868.73,0.00010999,2]
[333296495,1722039040525,-868.73,0.00010999,2]
[333296496,1722039040537,-868.73,0.00010999,2]
[333296497,1722039040547,-868.73,0.00010999,2]
[333296498,1722039040556,-868.73,0.00010999,2]
[333296499,1722039040565,-868.73,0.00010999,2]
[333296500,1722039040575,-868.73,0.00010999,2]
[333296501,1722039040584,-868.73,0.00010999,2]
[333296502,1722039040593,-868.73,0.00010999,2]
[333296503,1722039040602,-868.73,0.00010999,2]
[333296504,1722039040611,-868.73,0.00010999,2]
[333296505,1722039040621,-868.73,0.00010999,2]
[333296506,1722039040630,-868.73,0.00010999,2]
[333296507,1722039040639,-868.73,0.00010999,2]
[333296508,1722039040648,-868.73,0.00010999,2]
[333296509,1722039040657,-868.85994373,0.00010999,2]
[333296510,1722039040667,-1299.58,0.00010999,2]
[333296511,1722039040675,-1299.58,0.00010999,2]
[333296512,1722039040685,-1299.58,0.00010999,2]
[333296513,1722039040694,-1299.58,0.00010999,2]
[333296514,1722039040703,-1299.58,0.00010999,2]
[333296515,1722039040712,-1299.58,0.00010999,2]
[333296516,1722039040722,-1299.58,0.00010999,2]
[333296517,1722039040731,-1299.58,0.00010999,2]
[333296518,1722039040740,-1299.58,0.00010999,2]
[333296519,1722039040749,-1299.58,0.00010999,2]
[333296520,1722039040760,-1299.58,0.00010999,2]
[333296521,1722039040769,-1299.58,0.00010999,2]
[333296522,1722039040779,-1299.58,0.00010999,2]
[333296523,1722039040790,-1299.58,0.00010999,2]
[333296524,1722039040799,-1299.58,0.00010999,2]
[333296525,1722039040809,-1299.58,0.00010999,2]
[333296526,1722039040820,-1299.58,0.00010999,2]
[333296527,1722039040830,-1299.58,0.00010999,2]
[333296528,1722039040840,-1299.58,0.00010999,2]
[333296529,1722039040849,-1299.58,0.00010999,2]
[333296530,1722039040858,-1299.58,0.00010999,2]
[333296531,1722039040868,-1299.58,0.00010999,2]
[333296532,1722039040878,-1299.58,0.00010999,2]
[333296533,1722039040887,-1299.5866,0.00010999,2]
[333296534,1722039040896,-319.58434429,0.00010999,2]
[333296535,1722039040906,-500.0,0.00010999,2]
[333296536,1722039040915,-500.0,0.00010999,2]
[333296537,1722039040925,-597.81607366,0.00010999,2]
[333296538,1722039040935,-500.0,0.00010999,2]
[333296539,1722039040946,-500.0,0.00010999,2]
[333296540,1722039040955,-500.0,0.00010999,2]
[333296541,1722039040965,-500.0,0.00010999,2]
[333296542,1722039040975,-500.0,0.00010999,2]
[333296543,1722039040985,-500.0,0.00010999,2]
[333296544,1722039040996,-500.0,0.00010999,2]
[333296545,1722039041006,-593.89291561,0.00010999,2]
[333296546,1722039041016,-500.0,0.00010999,2]
[333296547,1722039041025,-500.0,0.00010999,2]
[333296548,1722039041035,-500.0,0.00010999,2]
[333296549,1722039041044,-500.0,0.00010999,2]
[333296550,1722039041053,-206.55,0.00010999,2]
[333296551,1722039041063,-500.0,0.00010999,2]
[333296552,1722039041072,-500.0,0.00010999,2]
[333296553,1722039041082,-500.0,0.00010999,2]
[333296554,1722039041092,-205.49,0.00010999,2]
[333296555,1722039041101,-500.0,0.00010999,2]
[333296556,1722039041111,-163.96,0.00010999,2]
[333296557,1722039041120,-500.0,0.00010999,2]
[333296558,1722039041130,-500.0,0.00010999,2]
[333296559,1722039041139,-645.96599145,0.00010999,2]
[333296560,1722039041149,-500.0,0.00010999,2]
[333296561,1722039041158,-500.0,0.00010999,2]
[333296562,1722039041167,-500.0,0.00010999,2]
[333296563,1722039041177,-500.0,0.00010999,2]
[333296564,1722039041186,-500.0,0.00010999,2]
[333296565,1722039041197,-500.0,0.00010999,2]
[333296566,1722039041206,-500.0,0.00010999,2]
[333296567,1722039041215,-500.0,0.00010999,2]
[333296568,1722039041225,-500.0,0.00010999,2]
[333296569,1722039041234,-500.0,0.00010999,2]
[333296570,1722039041244,-500.0,0.00010999,2]
[333296571,1722039041253,-496.01377588,0.00010999,2]
[333296572,1722039041263,-188.55696751,0.00010999,2]
[333296573,1722039041273,-3000.0,0.00010999,2]
[333296574,1722039041282,-2269.56,0.00010999,2]
[333296575,1722039041291,-203930.25080531,0.00011,2]
[333296576,1722039041301,-75156.18352437,0.00011,2]
[333296577,1722039041310,-334640.55513877,0.00011,2]
[333296578,1722039041327,-634.16862161,0.00011,2]
[333296582,1722039041835,-500.0,0.00010958,2]
[333296584,1722039041844,-3584.04678965,0.00011,2]
[333296586,1722039041855,-993.28232923,0.00011,2]
[333296588,1722039041866,-20063.93854966,0.00011,2]
[333296590,1722039041878,-3650.30341244,0.00011,2]
[333296592,1722039041889,-1201.23505853,0.00011,2]
[333296594,1722039041899,-95004.19666995,0.00011,2]
[333296596,1722039041915,-68074.70045047,0.00011,2]
[333296599,1722039041927,-1241.34203943,0.00011,2]
[333296601,1722039041938,-24617.29664748,0.00011,2]
[333296603,1722039041950,-4832.22556236,0.00011,2]
[333296605,1722039041961,-492.0,0.00011,2]
[333296607,1722039041972,-3255.0,0.00011,2]
[333296609,1722039041984,-38160.66277935,0.00011,2]
[333296619,1722039042064,-389.05856361,0.00010899,2]
[333296621,1722039042075,-500.0,0.00010958,2]
[333296623,1722039042084,-18943.06121597,0.00011,2]
[333296625,1722039042095,-1609.12646155,0.00011,2]
[333296627,1722039042106,-2752.594151,0.00011,2]
[333296629,1722039042117,-4010.853084,0.00011,2]
[333296631,1722039042129,-25549.94544281,0.00011,2]
[333296634,1722039042140,-3249.51905759,0.00011,2]
[333296636,1722039042151,-475.21517826,0.00011,2]
[333296638,1722039042162,-581.62307989,0.00011,2]
[333296640,1722039042173,-19847.13713073,0.00011,2]
[333296694,1722039042710,-727.54393735,0.00011,2]
[333296695,1722039042764,-310.0,0.00011,2]
[333296696,1722039042776,-680.3546727,0.00011,2]
[333296697,1722039042788,-764.825,0.00011,2]
[333296698,1722039042821,-1388.89874563,0.00011,2]
[333296699,1722039042833,-432.0,0.00011,2]
[333296700,1722039042845,-2833.13889606,0.00011,2]
[333296701,1722039042855,-1016.1,0.00011,2]
[333296702,1722039042875,-26821.11545556,0.00011,2]
[333296703,1722039042887,-1446.5731672,0.00011,2]
[333296704,1722039042898,-1310.89655929,0.00011,2]
[333296705,1722039042909,-4202.89669979,0.00011,2]
[333296706,1722039042930,-1619.88021858,0.00011,2]
[333296707,1722039042942,-2882.07837269,0.00011,2]
[333296708,1722039042986,-10750.945965,0.00011,2]
[333296709,1722039042998,-794.19253862,0.00011,2]
[333296710,1722039043011,-62510.91640953,0.00011,2]
[333296711,1722039043022,-2786.62573317,0.00011,2]
[333296712,1722039043042,-735.915,0.00011,2]
[333296713,1722039043054,-302.0,0.00011,2]
[333296714,1722039043068,-3924.53627189,0.00011,2]
[333296715,1722039043081,-300.08603421,0.00011,2]
[333296716,1722039043097,-405.5664405,0.00011,2]
[333296717,1722039043109,-504.46220104,0.00011,2]
[333296718,1722039043121,-297.95376087,0.00011,2]
[333296719,1722039043134,-293.30521316,0.00011,2]
[333296720,1722039043146,-1014.6249167,0.00011,2]
[333296721,1722039043157,-783.75520737,0.00011,2]
[333296722,1722039043170,-1627.83317733,0.00011,2]
[333296723,1722039043183,-17365.33401791,0.00011,2]
[333296724,1722039043200,-778.25376167,0.00011,2]
[333296725,1722039043211,-3681.70184731,0.00011,2]
[333296729,1722039045729,-733.53272508,0.00011,2]
[333296730,1722039045784,-359.31747,0.00011,2]
[333296731,1722039045841,-56152.66620212,0.00011,2]
[333296770,1722039150843,150.0,0.00017307,120]
[333296822,1722040231862,-282.57,8.219e-05,2]
[333296824,1722040231872,-66.22,9.824e-05,2]
[333296827,1722040231923,-1076.11,9.824e-05,2]
[333296828,1722040231934,-800.0,9.84e-05,2]
[333296829,1722040231943,-172.76,9.848e-05,2]
[333296830,1722040231953,-250.0,9.866e-05,2]
[333296831,1722040231963,-1250.0,0.0001,2]
[333296832,1722040231972,-750.71437211,0.0001,2]
[333296833,1722040231983,-200.0,0.00010005,2]
[333296834,1722040231995,-1607.7416,0.00010082,2]
[333296835,1722040232005,-225.56,0.00010086,2]
[333296836,1722040232015,-282.57,0.00010472,2]
[333296837,1722040232023,-300.0,0.00010571,2]
[333296838,1722040232033,-499.99,0.00010572,2]
[333296839,1722040232043,-150.0,0.00010572,2]
[333296840,1722040232053,-10001.1292,0.00010573,2]
[333296841,1722040232063,-652.409,0.00010573,2]
[333296842,1722040232073,-7157.2219,0.00010573,2]
[333296843,1722040232082,-174.27,0.00010623,2]
[333296844,1722040232091,-1000.0,0.000107,2]
[333296845,1722040232101,-150.0,0.00010834,2]
[333296846,1722040232111,-31660.88940483,0.0001088,2]
[333296847,1722040232120,-150.0,0.00010884,2]
[333296848,1722040232130,-10617.8994,0.00010899,2]
[333296849,1722040232140,-946.70917151,0.00010899,2]
[333296850,1722040232149,-946.70917146,0.00010899,2]
[333296851,1722040232159,-946.70917146,0.00010899,2]
[333296852,1722040232168,-946.70917146,0.00010899,2]
[333296853,1722040232179,-946.70917146,0.00010899,2]
[333296854,1722040232188,-946.70917146,0.00010899,2]
[333296855,1722040232197,-946.70917146,0.00010899,2]
[333296856,1722040232206,-946.70917146,0.00010899,2]
[333296857,1722040232215,-946.70917146,0.00010899,2]
[333296858,1722040232224,-362.92880842,0.000109,2]
[333296859,1722040232234,-362.92880835,0.000109,2]
[333296860,1722040232245,-362.92880835,0.000109,2]
[333296861,1722040232255,-362.92880835,0.000109,2]
[333296862,1722040232265,-362.92880835,0.000109,2]
[333296863,1722040232275,-362.92880835,0.000109,2]
[333296864,1722040232284,-362.92880835,0.000109,2]
[333296865,1722040232294,-362.92880835,0.000109,2]
[333296866,1722040232304,-39559.45403552,0.000109,2]
[333296867,1722040232313,-946.70917146,0.000109,2]
[333296868,1722040232322,-3007.54333918,0.000109,2]
[333296870,1722040232332,-316.22,0.0001091,2]
[333296872,1722040232347,-1581.0,0.0001091,2]
[333296874,1722040232357,-150.0,0.00010956,2]
[333296876,1722040232366,-500.0,0.00010958,2]
[333296877,1722040232375,-500.0,0.00010958,2]
[333296878,1722040232386,-495.27301774,0.00010958,2]
[333296879,1722040232395,-500.0,0.00010958,2]
[333296880,1722040232404,-500.0,0.00010958,2]
[333296881,1722040232414,-500.0,0.00010958,2]
[333296882,1722040232424,-634.13449414,0.00010958,2]
[333296883,1722040232435,-500.0,0.00010958,2]
[333296884,1722040232445,-648.81,0.00010958,2]
[333296885,1722040232455,-500.0,0.00010958,2]
[333296886,1722040232464,-500.0,0.00010958,2]
[333296887,1722040232474,-500.0,0.00010958,2]
[333296888,1722040232483,-500.0,0.00010958,2]
[333296889,1722040232495,-500.0,0.00010958,2]
[333296890,1722040232504,-500.0,0.00010958,2]
[333296891,1722040232513,-500.0,0.00010958,2]
[333296892,1722040232523,-500.0,0.00010958,2]
[333296893,1722040232532,-500.0,0.00010958,2]
[333296894,1722040232541,-500.0,0.00010958,2]
[333296895,1722040232550,-500.0,0.00010958,2]
[333296896,1722040232560,-500.0,0.00010958,2]
[333296897,1722040232569,-277.69357555,0.00010958,2]
[333296898,1722040232579,-500.0,0.00010958,2]
[333296899,1722040232589,-500.0,0.00010958,2]
[333296900,1722040232599,-500.0,0.00010958,2]
[333296901,1722040232608,-500.0,0.00010958,2]
[333296902,1722040232618,-637.18,0.00010958,2]
[333296903,1722040232627,-637.18,0.00010958,2]
[333296904,1722040232637,-507.3103033,0.00010958,2]
[333296905,1722040232647,-591.39,0.00010958,2]